fUST/lending_fUST_20240501
["ID","MTS","AMOUNT","RATE_DAILY","PERIOD"]
[325023047,1714505445608,-500.0,0.00032602,2]
[325023049,1714505445619,-1436.67,0.00032602,2]
[325023051,1714505445628,-859.25,0.00032602,2]
[325023053,1714505445638,-500.0,0.00032602,2]
[325023054,1714505445647,-201.26376216,0.00032602,2]
[325023056,1714505445656,-1004.83,0.00032602,2]
[325023058,1714505445665,-500.0,0.00032602,2]
[325023060,1714505445675,-659.9,0.00032602,2]
[325023062,1714505445684,-500.0,0.00032602,2]
[325023064,1714505445696,-500.0,0.00032602,2]
[325023066,1714505445705,-659.12,0.00032602,2]
[325023067,1714505445715,-500.0,0.00032602,2]
[325023069,1714505445724,-535.15,0.00032602,2]
[325023071,1714505445733,-500.0,0.00032602,2]
[325023075,1714505445742,-500.0,0.00032602,2]
[325023079,1714505445751,-500.0,0.00032602,2]
[325023083,1714505445760,-500.0,0.00032602,2]
[325023085,1714505445770,-500.0,0.00032602,2]
[325023086,1714505445779,-500.0,0.00032602,2]
[325023088,1714505445789,-500.0,0.00032602,2]
[325023090,1714505445798,-824.53,0.00032602,2]
[325023092,1714505445808,-500.0,0.00032602,2]
[325023094,1714505445817,-500.0,0.00032602,2]
[325023096,1714505445826,-500.0,0.00032602,2]
[325023098,1714505445835,-265.62032147,0.00032602,2]
[325023100,1714505445845,-500.0,0.00032602,2]
[325023102,1714505445854,-500.0,0.00032602,2]
[325023104,1714505445863,-500.0,0.00032602,30]
[325023106,1714505445872,-1006.0,0.00032627,10]
[325023108,1714505445881,-1006.0,0.00032627,10]
[325023110,1714505445890,-1006.0,0.00032627,10]
[325023112,1714505445901,-1006.0,0.00032627,10]
[325023114,1714505445910,-1006.0,0.00032627,10]
[325023116,1714505445920,-1006.0,0.00032627,10]
[325023118,1714505445929,-1006.0,0.00032627,10]
[325023120,1714505445938,-1006.0,0.00032627,10]
[325023122,1714505445951,-1006.0,0.00032627,10]
[325023124,1714505445961,-1006.0,0.00032627,10]
[325023125,1714505445970,-1006.0,0.00032627,10]
[325023127,1714505445979,-1006.0,0.00032627,10]
[325023129,1714505445989,-1006.0,0.00032627,10]
[325023131,1714505445998,-1006.0,0.00032627,10]
[325023133,1714505446007,-1006.0,0.00032627,10]
[325023135,1714505446016,-1006.0,0.00032627,10]
[325023137,1714505446025,-1006.0,0.00032627,10]
[325023139,1714505446035,-1006.0,0.00032627,10]
[325023141,1714505446044,-797.90110162,0.00032627,10]
[325023143,1714505446053,-1006.0,0.00032627,10]
[325023145,1714505446064,-153.40602022,0.00032627,2]
[325023147,1714505446073,-531.4,0.00032797,7]
[325023149,1714505446082,-589.78573425,0.00032807,6]
[325023151,1714505446091,-500.0,0.00032875,2]
[325023153,1714505446100,-500.0,0.00032876,2]
[325023155,1714505446109,-500.0,0.00032876,2]
[325023157,1714505446118,-500.0,0.00032876,2]
[325023159,1714505446128,-500.0,0.00032876,2]
[325023161,1714505446137,-500.0,0.00032876,2]
[325023163,1714505446149,-500.0,0.00032876,2]
[325023165,1714505446158,-500.0,0.00032876,2]
[325023166,1714505446167,-792.27,0.00032876,2]
[325023168,1714505446176,-500.0,0.00032876,2]
[325023170,1714505446185,-500.0,0.00032876,2]
[325023172,1714505446196,-224.96550399,0.00032876,2]
[325023174,1714505446205,-500.0,0.00032876,2]
[325023176,1714505446214,-500.0,0.00032876,2]
[325023178,1714505446223,-500.0,0.00032876,2]
[325023180,1714505446232,-500.0,0.00032876,2]
[325023182,1714505446241,-500.0,0.00032876,2]
[325023184,1714505446250,-500.0,0.00032876,2]
[325023186,1714505446259,-2119.53,0.00032876,2]
[325023188,1714505446274,-500.0,0.00032876,2]
[325023190,1714505446283,-500.0,0.00032876,2]
[325023192,1714505446292,-500.0,0.00032876,2]
[325023194,1714505446301,-190.96848604,0.00032876,2]
[325023196,1714505446312,-500.0,0.00032876,2]
[325023198,1714505446321,-500.0,0.00032876,2]
[325023200,1714505446331,-500.0,0.00032876,2]
[325023202,1714505446340,-500.0,0.00032876,2]
[325023204,1714505446351,-500.0,0.00032876,2]
[325023206,1714505446360,-500.0,0.00032876,2]
[325023208,1714505446369,-500.0,0.00032876,2]
[325023210,1714505446378,-500.0,0.00032876,2]
[325023212,1714505446387,-500.0,0.00032876,2]
[325023214,1714505446396,-500.0,0.00032876,2]
[325023216,1714505446406,-850.41,0.00032876,2]
[325023218,1714505446415,-500.0,0.00032876,2]
[325023220,1714505446424,-500.0,0.00032876,2]
[325023222,1714505446434,-500.0,0.00032876,2]
[325023224,1714505446446,-500.0,0.00032876,2]
[325023226,1714505446455,-721.15,0.00032876,2]
[325023228,1714505446465,-571.18,0.00032876,2]
[325023230,1714505446474,-500.0,0.00032876,2]
[325023232,1714505446483,-500.0,0.00032876,2]
[325023234,1714505446491,-500.0,0.00032876,2]
[325023236,1714505446501,-500.0,0.00032876,2]
[325023238,1714505446510,-500.0,0.00032876,2]
[325023240,1714505446519,-502.41483296,0.00032876,2]
[325023242,1714505446528,-640.44437509,0.00032876,2]
[325023244,1714505446537,-640.16,0.00032876,2]
[325023246,1714505446546,-500.0,0.00032876,2]
[325023248,1714505446555,-500.0,0.00032876,2]
[325023250,1714505446564,-500.0,0.00032876,2]
[325023251,1714505446573,-692.68,0.00032876,2]
[325023253,1714505446582,-500.0,0.00032876,2]
[325023255,1714505446592,-500.0,0.00032876,2]
[325023257,1714505446601,-500.0,0.00032876,2]
[325023259,1714505446611,-500.0,0.00032876,2]
[325023262,1714505446620,-500.0,0.00032876,2]
[325023264,1714505446629,-500.0,0.00032876,2]
[325023267,1714505446638,-500.0,0.00032876,2]
[325023269,1714505446648,-500.0,0.00032876,2]
[325023271,1714505446657,-500.0,0.00032876,2]
[325023273,1714505446666,-500.0,0.00032876,2]
[325023275,1714505446676,-500.0,0.00032876,2]
[325023277,1714505446685,-500.0,0.00032876,2]
[325023279,1714505446696,-500.0,0.00032876,2]
[325023280,1714505446706,-728.05,0.00032876,2]
[325023282,1714505446715,-525.55,0.00032876,2]
[325023284,1714505446725,-500.0,0.00032876,2]
[325023286,1714505446734,-500.0,0.00032876,2]
[325023288,1714505446743,-500.0,0.00032876,2]
[325023290,1714505446752,-500.0,0.00032876,2]
[325023292,1714505446762,-500.0,0.00032876,2]
[325023294,1714505446771,-500.0,0.00032876,2]
[325023296,1714505446781,-500.0,0.00032876,2]
[325023298,1714505446790,-500.0,0.00032876,2]
[325023300,1714505446799,-505.1,0.00032876,2]
[325023302,1714505446808,-1203.1,0.00032876,7]
[325023304,1714505446817,-1203.1,0.00032876,10]
[325023306,1714505446826,-551.5,0.00032876,2]
[325023308,1714505446836,-1203.1,0.00032876,13]
[325023310,1714505446845,-1203.1,0.00032876,16]
[325023312,1714505446854,-1203.1,0.00032876,19]
[325023313,1714505446864,-1203.1,0.00032876,22]
[325023315,1714505446873,-1203.1,0.00032876,25]
[325023317,1714505446882,-1203.1,0.00032876,28]
[325023319,1714505446891,-500.0,0.00032876,2]
[325023321,1714505446900,-500.0,0.00032876,2]
[325023323,1714505446909,-500.0,0.00032876,2]
[325023325,1714505446918,-635.27,0.00032876,2]
[325023327,1714505446927,-500.0,0.00032876,2]
[325023329,1714505446937,-500.0,0.00032876,2]
[325023331,1714505446950,-500.0,0.00032876,2]
[325023333,1714505446959,-500.0,0.00032876,2]
[325023335,1714505446968,-500.0,0.00032876,2]
[325023337,1714505446977,-500.0,0.00032876,2]
[325023339,1714505446986,-500.0,0.00032876,2]
[325023341,1714505446995,-500.0,0.00032876,2]
[325023343,1714505447004,-500.0,0.00032876,2]
[325023345,1714505447013,-500.0,0.00032876,2]
[325023347,1714505447022,-500.0,0.00032876,2]
[325023349,1714505447031,-500.0,0.00032876,2]
[325023351,1714505447040,-534.82,0.00032876,2]
[325023352,1714505447049,-500.0,0.00032876,2]
[325023354,1714505447058,-500.0,0.00032876,2]
[325023356,1714505447068,-500.0,0.00032876,2]
[325023358,1714505447077,-680.71,0.00032876,2]
[325023360,1714505447086,-1156.35,0.00032876,2]
[325023362,1714505447095,-500.0,0.00032876,2]
[325023364,1714505447104,-500.0,0.00032876,2]
[325023366,1714505447114,-500.0,0.00032876,2]
[325023368,1714505447123,-500.0,0.00032876,2]
[325023370,1714505447132,-500.0,0.00032876,2]
[325023372,1714505447145,-2701.48,0.00032876,2]
[325023374,1714505447154,-500.0,0.00032876,2]
[325023376,1714505447164,-620.11,0.00032876,2]
[325023378,1714505447174,-500.0,0.00032876,2]
[325023380,1714505447182,-500.0,0.00032876,2]
[325023382,1714505447191,-500.28752524,0.00032876,2]
[325023384,1714505447207,-508.45,0.00032876,2]
[325023386,1714505447216,-500.0,0.00032876,2]
[325023388,1714505447225,-500.0,0.00032876,2]
[325023390,1714505447234,-803.55,0.00032876,2]
[325023391,1714505447243,-500.0,0.00032876,2]
[325023393,1714505447252,-523.14,0.00032876,2]
[325023395,1714505447261,-503.76,0.00032876,2]
[325023397,1714505447271,-500.0,0.00032876,2]
[325023399,1714505447284,-500.0,0.00032876,2]
[325023401,1714505447293,-850.66,0.00032876,2]
[325023403,1714505447302,-500.0,0.00032876,2]
[325023405,1714505447311,-340.01326738,0.00032876,2]
[325023407,1714505447322,-500.0,0.00032876,2]
[325023409,1714505447331,-500.0,0.00032876,2]
[325023411,1714505447341,-500.0,0.00032876,2]
[325023413,1714505447351,-500.0,0.00032876,2]
[325023423,1714505447361,-500.0,0.00032876,2]
[325023425,1714505447458,-500.0,0.00032876,2]
[325023427,1714505447467,-500.89891223,0.00032876,2]
[325023429,1714505447476,-541.93212074,0.00032876,2]
[325023431,1714505447485,-500.0,0.00032876,14]
[325023433,1714505447494,-719.25,0.00032876,2]
[325023435,1714505447502,-686.46,0.00032876,2]
[325023437,1714505447511,-500.0,0.00032876,2]
[325023439,1714505447520,-500.0,0.00032876,2]
[325023441,1714505447529,-626.29,0.00032876,2]
[325023443,1714505447538,-1467.22,0.00032876,2]
[325023445,1714505447547,-662.04,0.00032876,2]
[325023446,1714505447556,-500.0,0.00032876,2]
[325023448,1714505447565,-1436.67,0.00032876,2]
[325023450,1714505447575,-859.25,0.00032876,2]
[325023452,1714505447583,-500.0,0.00032876,2]
[325023454,1714505447593,-1004.83,0.00032876,2]
[325023456,1714505447602,-500.0,0.00032876,2]
[325023458,1714505447611,-659.9,0.00032876,2]
[325023460,1714505447620,-500.0,0.00032876,2]
[325023462,1714505447629,-500.0,0.00032876,2]
[325023464,1714505447639,-659.12,0.00032876,2]
[325023466,1714505447649,-500.0,0.00032876,2]
[325023468,1714505447658,-535.15,0.00032876,2]
[325023470,1714505447667,-500.0,0.00032876,2]
[325023472,1714505447676,-500.0,0.00032876,2]
[325023474,1714505447685,-500.0,0.00032876,2]
[325023476,1714505447699,-500.0,0.00032876,2]
[325023478,1714505447708,-500.0,0.00032876,2]
[325023480,1714505447717,-549.39878885,0.00032876,2]
[325023482,1714505447731,-500.0,0.00032876,2]
[325023484,1714505447742,-824.53,0.00032876,2]
[325023486,1714505447751,-500.0,0.00032876,2]
[325023488,1714505447760,-500.0,0.00032876,2]
[325023490,1714505447770,-500.0,0.00032876,2]
[325023491,1714505447779,-500.0,0.00032876,2]
[325023492,1714505447788,-500.0,0.00032876,2]
[325023493,1714505447797,-475.60935481,0.00032876,30]
[325023494,1714505447806,-1203.1,0.00033149,31]
[325023495,1714505447815,-500.0,0.0003315,7]
[325023496,1714505447825,-500.0,0.0003315,7]
[325023497,1714505447833,-500.0,0.0003315,7]
[325023498,1714505447842,-500.0,0.0003315,7]
[325023499,1714505447851,-500.0,0.0003315,7]
[325023500,1714505447860,-500.0,0.0003315,7]
[325023501,1714505447869,-792.27,0.0003315,7]
[325023502,1714505447878,-500.0,0.0003315,7]
[325023503,1714505447887,-500.0,0.0003315,7]
[325023504,1714505447896,-500.0,0.0003315,7]
[325023505,1714505447905,-500.0,0.0003315,7]
[325023506,1714505447914,-500.0,0.0003315,7]
[325023507,1714505447923,-500.0,0.0003315,7]
[325023508,1714505447933,-500.0,0.0003315,7]
[325023509,1714505447941,-500.0,0.0003315,7]
[325023510,1714505447954,-2119.53,0.0003315,7]
[325023511,1714505447963,-525.59840658,0.0003315,7]
[325023512,1714505447971,-500.0,0.0003315,7]
[325023513,1714505447980,-500.0,0.0003315,7]
[325023514,1714505447989,-500.0,0.0003315,7]
[325023515,1714505447998,-500.0,0.0003315,7]
[325023516,1714505448007,-500.0,0.0003315,7]
[325023517,1714505448017,-555.55887338,0.0003315,7]
[325023518,1714505448026,-500.0,0.0003315,7]
[325023519,1714505448035,-500.0,0.0003315,7]
[325023521,1714505448044,-500.0,0.0003315,7]
[325023523,1714505448053,-500.0,0.0003315,7]
[325023525,1714505448063,-850.41,0.0003315,7]
[325023527,1714505448072,-500.0,0.0003315,7]
[325023529,1714505448081,-500.0,0.0003315,7]
[325023531,1714505448090,-500.0,0.0003315,7]
[325023532,1714505448099,-500.0,0.0003315,7]
[325023534,1714505448108,-721.15,0.0003315,7]
[325023536,1714505448117,-571.18,0.0003315,7]
[325023539,1714505448126,-500.0,0.0003315,7]
[325023541,1714505448136,-244.06323343,0.0003315,7]
[325023542,1714505448147,-500.0,0.0003315,7]
[325023544,1714505448156,-500.0,0.0003315,2]
[325023546,1714505448166,-640.16,0.0003315,7]
[325023548,1714505448175,-500.0,0.0003315,7]
[325023550,1714505448185,-500.0,0.0003315,7]
[325023553,1714505448197,-500.0,0.0003315,7]
[325023554,1714505448206,-692.68,0.0003315,7]
[325023557,1714505448215,-500.0,0.0003315,7]
[325023558,1714505448225,-500.0,0.0003315,7]
[325023561,1714505448235,-500.0,0.0003315,7]
[325023563,1714505448244,-263.0925182,0.0003315,7]
[325023564,1714505448253,-500.0,0.0003315,7]
[325023566,1714505448263,-500.0,0.0003315,7]
[325023568,1714505448277,-500.0,0.0003315,7]
[325023570,1714505448286,-500.0,0.0003315,7]
[325023572,1714505448295,-500.0,0.0003315,7]
[325023574,1714505448306,-500.0,0.0003315,7]
[325023576,1714505448315,-500.0,0.0003315,7]
[325023578,1714505448324,-500.0,0.0003315,7]
[325023580,1714505448333,-500.0,0.0003315,7]
[325023582,1714505448343,-728.05,0.0003315,7]
[325023584,1714505448355,-525.55,0.0003315,7]
[325023586,1714505448366,-500.0,0.0003315,7]
[325023588,1714505448375,-500.0,0.0003315,7]
[325023590,1714505448384,-500.0,0.0003315,7]
[325023592,1714505448394,-500.0,0.0003315,7]
[325023594,1714505448404,-500.0,0.0003315,7]
[325023596,1714505448412,-500.0,0.0003315,7]
[325023598,1714505448422,-500.0,0.0003315,7]
[325023600,1714505448431,-500.0,0.0003315,7]
[325023602,1714505448440,-505.1,0.0003315,7]
[325023604,1714505448453,-551.5,0.0003315,7]
[325023606,1714505448462,-500.0,0.0003315,7]
[325023608,1714505448471,-500.0,0.0003315,7]
[325023610,1714505448480,-500.0,0.0003315,7]
[325023612,1714505448489,-635.27,0.0003315,7]
[325023614,1714505448499,-500.0,0.0003315,7]
[325023615,1714505448508,-500.0,0.0003315,7]
[325023617,1714505448517,-500.0,0.0003315,7]
[325023620,1714505448527,-500.0,0.0003315,7]
[325023621,1714505448536,-500.0,0.0003315,7]
[325023623,1714505448545,-500.0,0.0003315,7]
[325023625,1714505448554,-500.0,0.0003315,7]
[325023627,1714505448564,-500.0,0.0003315,7]
[325023629,1714505448573,-500.0,0.0003315,7]
[325023631,1714505448582,-500.0,0.0003315,7]
[325023633,1714505448591,-500.0,0.0003315,7]
[325023635,1714505448600,-500.0,0.0003315,7]
[325023637,1714505448610,-534.82,0.0003315,7]
[325023639,1714505448619,-500.0,0.0003315,7]
[325023641,1714505448629,-180.5690511,0.0003315,7]
[325023643,1714505448638,-500.0,0.0003315,7]
[325023645,1714505448647,-680.71,0.0003315,7]
[325023647,1714505448656,-1156.35,0.0003315,7]
[325023649,1714505448665,-500.0,0.0003315,7]
[325023651,1714505448675,-500.0,0.0003315,7]
[325023653,1714505448683,-500.0,0.0003315,7]
[325023655,1714505448692,-500.0,0.0003315,7]
[325023657,1714505448704,-500.0,0.0003315,7]
[325023659,1714505448713,-2701.48,0.0003315,7]
[325023661,1714505448722,-500.0,0.0003315,7]
[325023663,1714505448730,-620.11,0.0003315,7]
[325023665,1714505448739,-500.0,0.0003315,7]
[325023667,1714505448749,-508.45,0.0003315,7]
[325023669,1714505448758,-382.86747238,0.0003315,7]
[325023671,1714505448767,-500.0,0.0003315,7]
[325023673,1714505448777,-803.55,0.0003315,7]
[325023675,1714505448786,-500.0,0.0003315,7]
[325023677,1714505448796,-523.14,0.0003315,7]
[325023679,1714505448805,-503.76,0.0003315,7]
[325023681,1714505448814,-500.0,0.0003315,7]
[325023683,1714505448824,-297.56226102,0.0003315,7]
[325023685,1714505448833,-850.66,0.0003315,7]
[325023687,1714505448842,-500.0,0.0003315,7]
[325023689,1714505448851,-500.0,0.0003315,7]
[325023691,1714505448861,-500.0,0.0003315,7]
[325023693,1714505448870,-500.0,0.0003315,7]
[325023695,1714505448879,-500.0,0.0003315,7]
[325023697,1714505448888,-500.0,0.0003315,7]
[325023699,1714505448898,-500.0,0.0003315,7]
[325023701,1714505448907,-719.25,0.0003315,7]
[325023703,1714505448916,-686.46,0.0003315,7]
[325023705,1714505448926,-434.97621626,0.0003315,7]
[325023707,1714505448935,-500.0,0.0003315,7]
[325023709,1714505448947,-626.29,0.0003315,7]
[325023711,1714505448956,-1467.22,0.0003315,7]
[325023713,1714505448966,-662.04,0.0003315,7]
[325023715,1714505448975,-500.0,0.0003315,7]
[325023717,1714505448985,-1436.67,0.0003315,7]
[325023719,1714505448994,-859.25,0.0003315,7]
[325023721,1714505449003,-500.0,0.0003315,7]
[325023723,1714505449013,-1004.83,0.0003315,7]
[325023725,1714505449022,-500.0,0.0003315,7]
[325023727,1714505449031,-659.9,0.0003315,7]
[325023729,1714505449040,-500.0,0.0003315,7]
[325023731,1714505449050,-500.0,0.0003315,7]
[325023733,1714505449059,-659.12,0.0003315,7]
[325023735,1714505449068,-500.0,0.0003315,7]
[325023737,1714505449078,-535.15,0.0003315,7]
[325023739,1714505449087,-500.0,0.0003315,7]
[325023741,1714505449097,-500.0,0.0003315,7]
[325023743,1714505449106,-500.0,0.0003315,7]
[325023745,1714505449115,-500.0,0.0003315,7]
[325023747,1714505449125,-500.0,0.0003315,7]
[325023749,1714505449134,-500.0,0.0003315,7]
[325023751,1714505449145,-824.53,0.0003315,7]
[325023753,1714505449154,-500.0,0.0003315,7]
[325023755,1714505449163,-500.0,0.0003315,7]
[325023757,1714505449172,-500.0,0.0003315,7]
[325023759,1714505449181,-500.0,0.0003315,7]
[325023760,1714505449190,-500.0,0.0003315,7]
[325023762,1714505449202,-165.75072,0.00033171,2]
[325023764,1714505449212,-173.024358,0.00033171,2]
[325023766,1714505449221,-187.928216,0.00033171,2]
[325023768,1714505449230,-182.1164,0.00033171,2]
[325023770,1714505449239,-150.0,0.00033423,2]
[325023772,1714505449248,-573.67192691,0.00033424,7]
[325023774,1714505449257,-500.0,0.00033424,7]
[325023776,1714505449267,-500.0,0.00033424,7]
[325023787,1714505449350,-792.27,0.00033424,7]
[325023789,1714505449370,-500.0,0.00033424,7]
[325023791,1714505449379,-500.0,0.00033424,7]
[325023793,1714505449389,-500.0,0.00033424,7]
[325023795,1714505449399,-500.0,0.00033424,7]
[325023797,1714505449408,-500.0,0.00033424,7]
[325023798,1714505449418,-500.0,0.00033424,7]
[325023799,1714505449428,-500.0,0.00033424,7]
[325023800,1714505449438,-500.0,0.00033424,7]
[325023801,1714505449450,-2119.53,0.00033424,7]
[325023803,1714505449459,-500.0,0.00033424,7]
[325023804,1714505449469,-500.0,0.00033424,7]
[325023806,1714505449478,-500.0,0.00033424,7]
[325023808,1714505449487,-500.0,0.00033424,7]
[325023810,1714505449497,-500.0,0.00033424,7]
[325023812,1714505449507,-500.0,0.00033424,7]
[325023814,1714505449516,-500.0,0.00033424,7]
[325023815,1714505449525,-500.0,0.00033424,7]
[325023816,1714505449534,-850.41,0.00033424,7]
[325023817,1714505449543,-500.0,0.00033424,7]
[325023818,1714505449552,-500.0,0.00033424,7]
[325023819,1714505449561,-500.0,0.00033424,7]
[325023820,1714505449571,-500.0,0.00033424,7]
[325023821,1714505449580,-721.15,0.00033424,7]
[325023822,1714505449589,-571.18,0.00033424,7]
[325023823,1714505449598,-500.0,0.00033424,7]
[325023824,1714505449608,-500.0,0.00033424,7]
[325023825,1714505449617,-500.0,0.00033424,2]
[325023826,1714505449627,-640.16,0.00033424,7]
[325023827,1714505449636,-500.0,0.00033424,7]
[325023828,1714505449645,-500.0,0.00033424,7]
[325023829,1714505449655,-500.0,0.00033424,7]
[325023830,1714505449664,-692.68,0.00033424,7]
[325023831,1714505449673,-500.0,0.00033424,7]
[325023832,1714505449683,-500.0,0.00033424,7]
[325023833,1714505449692,-500.0,0.00033424,7]
[325023834,1714505449704,-500.0,0.00033424,7]
[325023835,1714505449713,-500.0,0.00033424,7]
[325023836,1714505449722,-500.0,0.00033424,7]
[325023837,1714505449731,-168.45715128,0.00033424,7]
[325023838,1714505449741,-500.0,0.00033424,7]
[325023839,1714505449750,-500.0,0.00033424,7]
[325023840,1714505449759,-500.0,0.00033424,7]
[325023841,1714505449769,-500.0,0.00033424,7]
[325023842,1714505449778,-500.0,0.00033424,7]
[325023843,1714505449788,-728.05,0.00033424,7]
[325023844,1714505449797,-525.55,0.00033424,7]
[325023845,1714505449806,-500.0,0.00033424,7]
[325023846,1714505449815,-500.0,0.00033424,7]
[325023847,1714505449825,-500.0,0.00033424,7]
[325023848,1714505449835,-500.0,0.00033424,7]
[325023849,1714505449844,-500.0,0.00033424,7]
[325023850,1714505449853,-500.0,0.00033424,7]
[325023851,1714505449863,-500.0,0.00033424,7]
[325023852,1714505449872,-505.1,0.00033424,7]
[325023853,1714505449881,-551.5,0.00033424,7]
[325023854,1714505449891,-500.0,0.00033424,7]
[325023855,1714505449900,-500.0,0.00033424,7]
[325023856,1714505449910,-635.27,0.00033424,7]
[325023857,1714505449919,-500.0,0.00033424,7]
[325023858,1714505449928,-500.0,0.00033424,7]
[325023859,1714505449938,-500.0,0.00033424,7]
[325023860,1714505449950,-500.0,0.00033424,7]
[325023861,1714505449959,-500.0,0.00033424,7]
[325023862,1714505449969,-500.0,0.00033424,7]
[325023863,1714505449978,-500.0,0.00033424,7]
[325023864,1714505449987,-500.0,0.00033424,7]
[325023865,1714505449996,-500.0,0.00033424,7]
[325023866,1714505450005,-500.0,0.00033424,7]
[325023867,1714505450015,-500.0,0.00033424,7]
[325023868,1714505450023,-534.82,0.00033424,7]
[325023869,1714505450033,-500.0,0.00033424,7]
[325023870,1714505450042,-500.0,0.00033424,7]
[325023871,1714505450051,-680.71,0.00033424,7]
[325023872,1714505450059,-1156.35,0.00033424,7]
[325023873,1714505450069,-500.0,0.00033424,7]
[325023874,1714505450078,-500.0,0.00033424,7]
[325023875,1714505450087,-500.0,0.00033424,7]
[325023876,1714505450096,-500.0,0.00033424,7]
[325023877,1714505450105,-500.0,0.00033424,7]
[325023878,1714505450115,-2701.48,0.00033424,7]
[325023879,1714505450124,-500.0,0.00033424,7]
[325023880,1714505450133,-620.11,0.00033424,7]
[325023881,1714505450145,-500.0,0.00033424,7]
[325023882,1714505450154,-508.45,0.00033424,7]
[325023883,1714505450163,-500.0,0.00033424,7]
[325023884,1714505450172,-803.55,0.00033424,7]
[325023885,1714505450181,-500.0,0.00033424,7]
[325023886,1714505450191,-523.14,0.00033424,7]
[325023887,1714505450202,-503.76,0.00033424,7]
[325023888,1714505450211,-500.0,0.00033424,7]
[325023889,1714505450220,-850.66,0.00033424,7]
[325023890,1714505450229,-500.0,0.00033424,7]
[325023891,1714505450239,-500.0,0.00033424,7]
[325023892,1714505450248,-500.0,0.00033424,7]
[325023893,1714505450257,-500.0,0.00033424,7]
[325023894,1714505450267,-500.0,0.00033424,7]
[325023895,1714505450277,-500.0,0.00033424,7]
[325023896,1714505450287,-719.25,0.00033424,7]
[325023897,1714505450296,-686.46,0.00033424,7]
[325023898,1714505450305,-500.0,0.00033424,7]
[325023899,1714505450316,-626.29,0.00033424,7]
[325023900,1714505450325,-1467.22,0.00033424,7]
[325023901,1714505450334,-662.04,0.00033424,7]
[325023902,1714505450343,-500.0,0.00033424,7]
[325023903,1714505450352,-1436.67,0.00033424,7]
[325023904,1714505450363,-859.25,0.00033424,7]
[325023905,1714505450373,-500.0,0.00033424,7]
[325023906,1714505450382,-1004.83,0.00033424,7]
[325023907,1714505450391,-500.0,0.00033424,7]
[325023908,1714505450400,-659.9,0.00033424,7]
[325023909,1714505450409,-500.0,0.00033424,7]
[325023910,1714505450419,-500.0,0.00033424,7]
[325023911,1714505450428,-659.12,0.00033424,7]
[325023912,1714505450437,-500.0,0.00033424,7]
[325023913,1714505450449,-535.15,0.00033424,7]
[325023914,1714505450458,-500.0,0.00033424,7]
[325023915,1714505450468,-500.0,0.00033424,7]
[325023916,1714505450477,-500.0,0.00033424,7]
[325023917,1714505450486,-500.0,0.00033424,7]
[325023918,1714505450495,-500.0,0.00033424,7]